fUSD/lending_fUSD_20250505
["ID","MTS","AMOUNT","RATE_DAILY","PERIOD"]
[359964083,1746452535511,-525.05349773,0.00019898,2]
[359964084,1746452535534,-450.0,0.00019898,2]
[359964085,1746452535555,-450.0,0.00019898,2]
[359964086,1746452535576,-450.0,0.00019898,2]
[359964087,1746452535596,-450.0,0.00019898,2]
[359964088,1746452535616,-450.0,0.00019898,2]
[359964089,1746452535637,-450.0,0.00019898,2]
[359964090,1746452535658,-151.0,0.00019898,2]
[359964091,1746452535680,-151.0,0.00019898,2]
[359964092,1746452535700,-450.0,0.00019898,2]
[359964093,1746452535720,-450.0,0.00019898,2]
[359964094,1746452535741,-450.0,0.00019898,2]
[359964095,1746452535763,-151.0,0.00019898,2]
[359964096,1746452535784,-151.0,0.00019898,2]
[359964097,1746452535805,-151.0,0.00019898,2]
[359964098,1746452535826,-151.0,0.00019898,2]
[359964099,1746452535847,-500.0,0.00019898,2]
[359964100,1746452535868,-450.0,0.00019898,2]
[359964101,1746452535890,-450.0,0.00019898,2]
[359964102,1746452535911,-450.0,0.00019898,2]
[359964103,1746452535933,-282.060287,0.00019898,2]
[359964104,1746452535955,-151.0,0.00019898,2]
[359964105,1746452535976,-450.0,0.00019898,2]
[359964106,1746452536001,-151.0,0.00019898,2]
[359964107,1746452536169,-151.0,0.00019898,2]
[359964108,1746452536193,-151.0,0.00019898,2]
[359964109,1746452536214,-450.0,0.00019898,2]
[359964110,1746452536234,-450.0,0.00019898,2]
[359964111,1746452536256,-450.0,0.00019899,2]
[359964112,1746452536277,-156.382913,0.00019899,2]
[359964113,1746452536298,-151.0,0.00019899,2]
[359964114,1746452536318,-359.24753339,0.00019899,2]
[359964115,1746452536338,-151.0,0.00019899,2]
[359964116,1746452536358,-151.0,0.00019899,2]
[359964117,1746452536380,-151.0,0.00019899,2]
[359964118,1746452536403,-151.0,0.00019899,2]
[359964119,1746452536424,-151.0,0.00019899,2]
[359964120,1746452536445,-464.79219225,0.00019899,2]
[359964121,1746452536465,-169.955352,0.00019899,2]
[359964122,1746452536486,-454.67865262,0.00019899,2]
[359964123,1746452536512,-525.00794871,0.00019899,2]
[359964124,1746452536534,-450.0,0.00019899,2]
[359964125,1746452536555,-450.0,0.00019899,2]
[359964126,1746452536576,-151.0,0.00019899,2]
[359964127,1746452536598,-151.0,0.00019899,2]
[359964128,1746452536618,-151.0,0.00019899,2]
[359964129,1746452536639,-466.60691417,0.00019899,2]
[359964130,1746452536660,-455.07225871,0.00019899,2]
[359964131,1746452536681,-468.44883203,0.00019899,2]
[359964132,1746452536703,-774.3,0.00019899,2]
[359964133,1746452536724,-151.0,0.00019899,2]
[359964134,1746452536745,-151.0,0.00019899,2]
[359964135,1746452536774,-151.0,0.00019899,2]
[359964136,1746452536796,-238.19675,0.00019899,2]
[359964137,1746452536818,-151.0,0.00019899,2]
[359964138,1746452536840,-5099.29725375,0.00019899,2]
[359964139,1746452536861,-450.0,0.00019899,2]
[359964140,1746452536882,-450.0,0.00019899,2]
[359964141,1746452536904,-151.0,0.00019899,2]
[359964142,1746452536927,-226.74,0.00019899,2]
[359964143,1746452536948,-151.0,0.00019899,2]
[359964144,1746452536969,-151.0,0.00019899,2]
[359964145,1746452536991,-450.0,0.00019899,2]
[359964146,1746452537015,-452.45543836,0.00019899,2]
[359964147,1746452537039,-450.0,0.00019899,2]
[359964148,1746452537061,-461.6675902,0.00019899,2]
[359964149,1746452537081,-450.0,0.00019899,2]
[359964150,1746452537102,-450.0,0.00019899,2]
[359964151,1746452537124,-450.0,0.00019899,2]
[359964152,1746452537144,-450.0,0.00019899,2]
[359964153,1746452537164,-450.0,0.00019899,2]
[359964154,1746452537184,-450.0,0.00019899,2]
[359964155,1746452537205,-450.0,0.00019899,2]
[359964156,1746452537225,-469.30239425,0.00019899,2]
[359964157,1746452537247,-450.0,0.00019899,2]
[359964158,1746452537270,-450.0,0.00019899,2]
[359964159,1746452537290,-502.89792827,0.00019899,2]
[359964160,1746452537311,-151.0,0.00019899,2]
[359964161,1746452537331,-450.0,0.00019899,2]
[359964162,1746452537351,-151.0,0.00019899,2]
[359964163,1746452537372,-151.0,0.00019899,2]
[359964164,1746452537392,-451.09638104,0.00019899,2]
[359964165,1746452537413,-451.02382333,0.00019899,2]
[359964166,1746452537437,-450.0,0.00019899,2]
[359964167,1746452537458,-450.0,0.00019899,2]
[359964168,1746452537479,-450.0,0.00019899,2]
[359964169,1746452537504,-319.16,0.00019899,2]
[359964170,1746452537525,-452.06,0.00019899,2]
[359964171,1746452537547,-450.0,0.00019899,2]
[359964172,1746452537568,-456.1790829,0.00019899,2]
[359964173,1746452537589,-359.46718152,0.00019899,2]
[359964174,1746452537609,-562.8,0.00019899,2]
[359964175,1746452537630,-450.0,0.00019899,2]
[359964176,1746452537651,-150.0,0.00019899,2]
[359964177,1746452537671,-450.0,0.00019899,2]
[359964178,1746452537692,-150.0,0.00019899,2]
[359964179,1746452537713,-450.0,0.00019899,2]
[359964180,1746452537734,-459.13062492,0.00019899,2]
[359964181,1746452537756,-200.5831331,0.00019899,2]
[359964182,1746452537776,-150.0,0.00019899,2]
[359964183,1746452537797,-463.13278092,0.00019899,2]
[359964184,1746452537817,-450.0,0.00019899,2]
[359964185,1746452537838,-475.73610853,0.00019899,2]
[359964186,1746452537858,-450.0,0.00019899,2]
[359964187,1746452537879,-480.24018872,0.00019899,2]
[359964188,1746452537899,-450.0,0.00019899,2]
[359964189,1746452537920,-450.0,0.00019899,2]
[359964190,1746452537940,-459.8810777,0.00019899,2]
[359964191,1746452537961,-450.0,0.00019899,2]
[359964192,1746452537982,-450.0,0.00019899,2]
[359964193,1746452538004,-482.1082104,0.00019899,2]
[359964194,1746452538029,-450.0,0.00019899,2]
[359964195,1746452538050,-450.0,0.00019899,2]
[359964196,1746452538073,-450.0,0.00019899,2]
[359964197,1746452538094,-491.67032063,0.00019899,2]
[359964198,1746452538114,-277.99814962,0.00019899,2]
[359964199,1746452538135,-450.0,0.00019899,2]
[359964200,1746452538155,-450.0,0.00019899,2]
[359964201,1746452538176,-450.0,0.00019899,2]
[359964202,1746452538196,-450.0,0.00019899,2]
[359964203,1746452538217,-450.0,0.00019899,2]
[359964204,1746452538238,-450.0,0.00019899,2]
[359964205,1746452538260,-450.0,0.00019899,2]
[359964206,1746452538286,-450.0,0.00019899,2]
[359964207,1746452538306,-512.15869507,0.00019899,2]
[359964208,1746452538330,-450.0,0.00019899,2]
[359964209,1746452538350,-231.61395276,0.00019899,2]
[359964210,1746452538371,-450.0,0.00019899,2]
[359964211,1746452538391,-450.0,0.00019899,2]
[359964212,1746452538412,-450.0,0.00019899,2]
[359964213,1746452538434,-450.0,0.00019899,2]
[359964214,1746452538454,-450.0,0.00019899,2]
[359964215,1746452538475,-450.0,0.00019899,2]
[359964216,1746452538496,-450.0,0.00019899,2]
[359964217,1746452538522,-450.0,0.00019899,2]
[359964218,1746452538543,-490.09823876,0.00019899,2]
[359964219,1746452538564,-450.0,0.00019899,2]
[359964220,1746452538585,-450.0,0.00019899,2]
[359964221,1746452538607,-450.0,0.00019899,2]
[359964222,1746452538752,-450.0,0.00019899,2]
[359964223,1746452538781,-450.0,0.00019899,2]
[359964224,1746452538803,-450.0,0.00019899,2]
[359964225,1746452538826,-411.0064675,0.00019899,2]
[359964226,1746452538848,-450.0,0.00019899,2]
[359964227,1746452538870,-450.0,0.00019899,2]
[359964228,1746452538893,-360.70911911,0.00019899,2]
[359964229,1746452538914,-593.19261331,0.00019899,2]
[359964230,1746452538937,-450.0,0.00019899,2]
[359964231,1746452538958,-450.0,0.00019899,2]
[359964232,1746452538980,-151.0,0.00019899,2]
[359964233,1746452539003,-228.74378712,0.00019899,2]
[359964234,1746452539030,-365.66915787,0.00019899,2]
[359964235,1746452539052,-450.0,0.00019899,2]
[359964236,1746452539076,-450.0,0.00019899,2]
[359964237,1746452539097,-151.0,0.00019899,2]
[359964238,1746452539120,-151.0,0.00019899,2]
[359964239,1746452539141,-517.82173724,0.00019899,2]
[359964240,1746452539163,-450.0,0.00019899,2]
[359964241,1746452539186,-450.0,0.00019899,2]
[359964242,1746452539208,-151.0,0.00019899,2]
[359964243,1746452539230,-151.0,0.00019899,2]
[359964244,1746452539251,-450.0,0.00019899,2]
[359964245,1746452539273,-450.0,0.00019899,2]
[359964246,1746452539296,-450.0,0.00019899,2]
[359964247,1746452539316,-154.552817,0.00019899,2]
[359964248,1746452539336,-156.035688,0.00019899,2]
[359964249,1746452539358,-546.99274835,0.00019899,2]
[359964250,1746452539380,-450.0,0.00019899,2]
[359964251,1746452539401,-190.37861243,0.00019899,2]
[359964252,1746452539428,-450.0,0.00019899,2]
[359964253,1746452539450,-450.0,0.00019899,2]
[359964254,1746452539473,-450.0,0.00019899,2]
[359964255,1746452539496,-450.0,0.00019899,2]
[359964256,1746452539521,-450.0,0.00019899,2]
[359964257,1746452539544,-450.0,0.00019899,2]
[359964258,1746452539566,-151.0,0.00019899,2]
[359964259,1746452539587,-450.0,0.00019899,2]
[359964260,1746452539607,-450.0,0.00019899,2]
[359964261,1746452539628,-450.0,0.00019899,2]
[359964262,1746452539648,-527.63637026,0.00019899,2]
[359964263,1746452539669,-450.0,0.00019899,2]
[359964264,1746452539689,-265.35,0.00019899,2]
[359964265,1746452539710,-450.0,0.00019899,2]
[359964266,1746452539731,-450.0,0.00019899,2]
[359964267,1746452539755,-450.0,0.00019899,2]
[359964268,1746452539775,-492.14316457,0.00019899,2]
[359964269,1746452539795,-452.58,0.00019899,2]
[359964270,1746452539816,-450.0,0.00019899,2]
[359964271,1746452539837,-1008.293,0.00019899,2]
[359964272,1746452539857,-428.77473833,0.00019899,2]
[359964273,1746452539883,-534.24,0.00019899,2]
[359964274,1746452539905,-450.0,0.00019899,2]
[359964275,1746452539927,-210.52298175,0.00019899,2]
[359964276,1746452539948,-235.61489581,0.00019899,2]
[359964277,1746452539970,-450.0,0.00019899,2]
[359964278,1746452539992,-2161.95,0.00019899,2]
[359964279,1746452540017,-450.0,0.00019899,2]
[359964280,1746452540039,-151.0,0.00019899,2]
[359964281,1746452540062,-500.0,0.00019899,2]
[359964282,1746452540082,-151.0,0.00019899,2]
[359964283,1746452540103,-2756.08,0.00019899,2]
[359964284,1746452540124,-450.0,0.00019899,2]
[359964285,1746452540144,-440.0,0.00019899,2]
[359964286,1746452540165,-2257.21,0.00019899,2]
[359964287,1746452540186,-178.969441,0.00019899,2]
[359964288,1746452540207,-450.0,0.00019899,2]
[359964289,1746452540227,-153.377997,0.00019899,2]
[359964290,1746452540247,-178.969441,0.00019899,2]
[359964291,1746452540269,-151.0,0.00019899,2]
[359964292,1746452540289,-5000.65,0.00019899,2]
[359964293,1746452540308,-153.377997,0.00019899,2]
[359964294,1746452540329,-151.0,0.00019899,2]
[359964295,1746452540349,-151.0,0.00019899,2]
[359964296,1746452540369,-450.0,0.00019899,2]
[359964297,1746452540390,-450.0,0.00019899,2]
[359964298,1746452540410,-450.0,0.00019899,2]
[359964299,1746452540430,-450.0,0.00019899,2]
[359964300,1746452540450,-450.0,0.00019899,2]
[359964301,1746452540469,-152.840662,0.00019899,2]
[359964302,1746452540489,-450.0,0.00019899,2]
[359964303,1746452540515,-58208.89765745,0.00019899,2]
[359964304,1746452570499,-185.45098,0.0001972,23]
[359964305,1746452570522,-199.18348471,0.00019799,2]
[359964306,1746452570550,-409.82480581,0.00019808,2]
[359964307,1746452570573,-409.82480581,0.00019817,2]
[359964308,1746452570596,-409.82480581,0.00019826,2]
[359964309,1746452570618,-409.82480581,0.00019835,2]
[359964310,1746452570640,-409.82480581,0.00019845,2]
[359964311,1746452570813,-409.82480581,0.00019854,2]
[359964312,1746452570837,-409.82480581,0.00019863,2]
[359964313,1746452570860,-409.82480581,0.00019872,2]
[359964314,1746452570883,-409.82480581,0.00019881,2]
[359964315,1746452570904,-450.0,0.00019896,2]
[359964316,1746452570925,-500.0,0.00019896,2]
[359964317,1746452570946,-450.0,0.00019896,2]
[359964318,1746452570970,-450.0,0.00019896,2]
[359964319,1746452570990,-450.0,0.00019896,2]
[359964320,1746452571015,-450.0,0.00019896,2]
[359964321,1746452571038,-452.44,0.00019896,2]
[359964322,1746452571059,-450.0,0.00019896,2]
[359964323,1746452571080,-524.67275617,0.00019896,2]
[359964324,1746452571101,-450.0,0.00019896,2]
[359964325,1746452571126,-450.0,0.00019896,2]
[359964326,1746452571146,-554.35272544,0.00019896,2]
[359964327,1746452571168,-450.0,0.00019896,2]
[359964328,1746452571190,-450.0,0.00019896,2]
[359964329,1746452571211,-450.0,0.00019896,2]
[359964330,1746452571233,-450.0,0.00019896,2]
[359964331,1746452571254,-450.0,0.00019896,2]
[359964332,1746452571274,-450.0,0.00019896,2]
[359964333,1746452571298,-450.0,0.00019896,2]
[359964334,1746452571320,-450.0,0.00019896,2]
[359964335,1746452571342,-515.94296531,0.00019896,2]
[359964336,1746452571364,-474.71038616,0.00019896,2]
[359964337,1746452571386,-450.0,0.00019896,2]
[359964338,1746452571408,-492.45,0.00019896,2]
[359964339,1746452571430,-523.74689952,0.00019896,2]
[359964340,1746452571452,-450.0,0.00019896,2]
[359964341,1746452571474,-450.0,0.00019896,2]
[359964342,1746452571496,-450.0,0.00019896,2]
[359964343,1746452571519,-450.0,0.00019896,2]
[359964344,1746452571543,-450.0,0.00019896,2]
[359964345,1746452571565,-450.0,0.00019896,2]
[359964346,1746452571587,-450.0,0.00019896,2]
[359964347,1746452571609,-453.06027563,0.00019896,2]
[359964348,1746452571633,-450.0,0.00019896,2]
[359964349,1746452571657,-450.0,0.00019896,2]
[359964350,1746452571680,-450.0,0.00019896,2]
[359964351,1746452571702,-450.0,0.00019896,2]
[359964352,1746452571725,-450.0,0.00019896,2]
[359964353,1746452571747,-481.03429624,0.00019896,2]
[359964354,1746452571769,-450.0,0.00019896,2]
[359964355,1746452571799,-450.0,0.00019896,2]
[359964356,1746452571822,-450.0,0.00019896,2]
[359964357,1746452571845,-450.0,0.00019896,2]
[359964358,1746452571868,-450.0,0.00019896,2]
[359964359,1746452571891,-450.0,0.00019897,2]
[359964360,1746452571912,-462.70920917,0.00019897,2]
[359964361,1746452571937,-450.0,0.00019897,2]
[359964362,1746452571958,-450.0,0.00019897,2]
[359964363,1746452571979,-481.57526706,0.00019897,2]
[359964364,1746452572000,-450.0,0.00019897,2]
[359964365,1746452572021,-450.0,0.00019897,2]
[359964366,1746452572048,-450.0,0.00019897,2]
[359964367,1746452572069,-450.0,0.00019897,2]
[359964368,1746452572090,-492.45,0.00019897,2]
[359964369,1746452572111,-450.0,0.00019897,2]
[359964370,1746452572133,-465.80186864,0.00019897,2]
[359964371,1746452572154,-474.4431861,0.00019897,2]
[359964372,1746452572175,-284.63,0.00019897,2]
[359964373,1746452572197,-479.37705776,0.00019897,2]
[359964374,1746452572218,-450.0,0.00019897,2]
[359964375,1746452572239,-450.0,0.00019897,2]
[359964376,1746452572260,-450.0,0.00019897,2]
[359964377,1746452572282,-151.0,0.00019898,2]
[359964378,1746452572304,-309.18559303,0.00019898,2]
[359964379,1746452572325,-450.0,0.00019898,2]
[359964380,1746452572345,-450.0,0.00019898,2]
[359964381,1746452572366,-450.0,0.00019898,2]
[359964382,1746452572387,-450.0,0.00019898,2]
[359964383,1746452572409,-450.0,0.00019898,2]
[359964384,1746452572449,-450.0,0.00019898,2]
[359964385,1746452572471,-450.0,0.00019898,2]
[359964386,1746452572492,-504.20876096,0.00019898,2]
[359964387,1746452572512,-450.0,0.00019898,2]
[359964388,1746452572533,-151.0,0.00019898,2]
[359964389,1746452572557,-450.0,0.00019898,2]
[359964390,1746452572578,-450.0,0.00019898,2]
[359964391,1746452572615,-450.0,0.00019898,2]
[359964392,1746452572656,-450.0,0.00019898,2]
[359964393,1746452572678,-450.0,0.00019898,2]
[359964394,1746452572701,-450.0,0.00019898,2]
[359964395,1746452572725,-450.0,0.00019898,2]
[359964396,1746452572748,-864.75234255,0.00019899,2]
[359964397,1746452572770,-698.01,0.00019899,2]
[359964398,1746452572792,-151.0,0.00019899,2]
[359964399,1746452572814,-450.0,0.00019899,2]
[359964400,1746452572837,-925.39,0.00019899,2]
[359964401,1746452572858,-151.0,0.00019899,2]
[359964402,1746452572882,-151.0,0.00019899,2]
[359964403,1746452572905,-151.0,0.00019899,2]
[359964404,1746452572927,-151.0,0.00019899,2]
[359964405,1746452572948,-151.0,0.00019899,2]
[359964406,1746452572970,-450.0,0.00019899,2]
[359964407,1746452572991,-450.0,0.00019899,2]
[359964408,1746452573143,-4480.89,0.00019899,2]
[359964409,1746452573161,-450.0,0.00019899,2]
[359964410,1746452573178,-151.0,0.00019899,2]
[359964411,1746452573197,-558.05,0.00019899,2]
[359964412,1746452573219,-1995.64,0.00019899,2]
[359964413,1746452573239,-450.0,0.00019899,2]
[359964414,1746452573261,-450.0,0.00019899,2]
[359964415,1746452573283,-450.0,0.00019899,2]
[359964416,1746452573309,-450.0,0.00019899,2]
[359964417,1746452573331,-151.0,0.00019899,2]
[359964418,1746452573353,-155.514427,0.00019899,2]
[359964419,1746452573376,-151.0,0.00019899,2]
[359964420,1746452573398,-151.0,0.00019899,2]
[359964421,1746452573420,-450.0,0.00019899,2]
[359964422,1746452573442,-450.0,0.00019899,2]
[359964423,1746452573464,-450.0,0.00019899,2]
[359964424,1746452573487,-450.0,0.00019899,2]
[359964425,1746452573510,-450.0,0.00019899,2]
[359964426,1746452573531,-450.0,0.00019899,2]
[359964427,1746452573555,-450.0,0.00019899,2]
[359964428,1746452573576,-450.0,0.00019899,2]
[359964429,1746452573598,-450.0,0.00019899,2]
[359964430,1746452573620,-500.0,0.00019899,2]
[359964431,1746452573642,-450.0,0.00019899,2]
[359964432,1746452573664,-450.0,0.00019899,2]
[359964433,1746452573687,-450.0,0.00019899,2]
[359964434,1746452573708,-212.45676704,0.00019899,2]
[359964435,1746452573733,-487.52,0.00019899,2]
[359964436,1746452573755,-450.0,0.00019899,2]
[359964437,1746452573776,-500.0,0.00019899,2]
[359964438,1746452573800,-150.0,0.00019899,2]
[359964439,1746452573822,-150.0,0.00019899,2]
[359964440,1746452573844,-450.0,0.00019899,2]
[359964441,1746452573867,-450.0,0.00019899,2]
[359964442,1746452573888,-450.0,0.00019899,2]
[359964443,1746452573910,-450.0,0.00019899,2]
[359964444,1746452573931,-450.0,0.00019899,2]
[359964445,1746452573953,-151.0,0.00019899,2]
[359964446,1746452573974,-175.61628855,0.00019899,2]
[359964447,1746452573996,-450.0,0.00019899,2]
[359964448,1746452574018,-3420.54,0.00019899,2]
[359964449,1746452574044,-450.0,0.00019899,2]
[359964450,1746452574066,-151.0,0.00019899,2]
[359964451,1746452574087,-450.0,0.00019899,2]
[359964452,1746452574110,-151.0,0.00019899,2]
[359964453,1746452574132,-151.0,0.00019899,2]
[359964454,1746452574152,-151.0,0.00019899,2]
[359964455,1746452574173,-228.01425504,0.00019899,2]
[359964456,1746452574194,-151.0,0.00019899,2]
[359964457,1746452574216,-164.671565,0.00019899,2]
[359964458,1746452574236,-469.51654345,0.00019899,2]
[359964459,1746452574257,-450.0,0.00019899,2]
[359964460,1746452574277,-154.506352,0.00019899,2]
[359964461,1746452574299,-450.0,0.00019899,2]
[359964462,1746452574320,-450.0,0.00019899,2]
[359964463,1746452574341,-155.514152,0.00019899,2]
[359964464,1746452574363,-278.705448,0.00019899,2]
[359964465,1746452574384,-500.0,0.00019899,2]
[359964466,1746452574405,-150.0,0.00019899,2]
[359964467,1746452574427,-450.0,0.00019899,2]
[359964468,1746452574449,-450.0,0.00019899,2]
[359964469,1746452574471,-150.0,0.00019899,2]
[359964470,1746452574491,-450.0,0.00019899,2]
[359964471,1746452574511,-450.0,0.00019899,2]
[359964472,1746452574532,-450.0,0.00019899,2]
[359964473,1746452574554,-150.0,0.00019899,2]
[359964474,1746452574575,-153.24691176,0.00019899,2]
[359964475,1746452574597,-450.0,0.00019899,2]
[359964476,1746452574618,-450.0,0.00019899,2]
[359964477,1746452574641,-450.0,0.00019899,2]
[359964478,1746452574662,-450.0,0.00019899,2]
[359964479,1746452574683,-450.0,0.00019899,2]
[359964480,1746452574703,-450.0,0.00019899,2]
[359964481,1746452574724,-450.0,0.00019899,2]
[359964482,1746452574746,-492.45,0.00019899,2]
[359964483,1746452574767,-450.0,0.00019899,2]
[359964484,1746452574791,-151.0,0.00019899,2]
[359964485,1746452574811,-450.0,0.00019899,2]
[359964486,1746452574836,-481.66556011,0.00019899,2]
[359964487,1746452574857,-450.0,0.00019899,2]
[359964488,1746452574879,-450.0,0.00019899,2]
[359964489,1746452574900,-456.4673388,0.00019899,2]
[359964490,1746452574922,-450.0,0.00019899,2]
[359964491,1746452574943,-151.0,0.000199,2]
[359964492,1746452574965,-159.975173,0.000199,2]
[359964493,1746452574986,-151.0,0.000199,2]
[359964494,1746452575007,-152.359389,0.000199,2]
[359964495,1746452575034,-6570.47222826,0.000199,2]
[359964496,1746452575056,-151.0,0.000199,2]
[359964497,1746452575079,-4076.19918182,0.000199,2]
[359964498,1746452575100,-182.598,0.000199,2]
[359964499,1746452575122,-151.0,0.000199,2]
[359964500,1746452575250,-151.0,0.000199,2]
[359964501,1746452575272,-151.0,0.000199,2]
[359964502,1746452575294,-283.493165,0.000199,2]
[359964503,1746452575314,-1901.22767112,0.000199,2]
[359964504,1746452575336,-104198.75358741,0.000199,2]
[359964505,1746452575357,-151.0,0.000199,2]
[359964506,1746452575378,-151.0,0.000199,2]
[359964507,1746452575408,-450.0,0.00019922,2]
[359964508,1746452575433,-450.0,0.00019922,2]
[359964509,1746452575454,-487.64,0.00019922,2]
[359964510,1746452575476,-393.12,0.00019922,2]
[359964511,1746452575499,-500.0,0.00019922,2]
[359964512,1746452575522,-450.0,0.00019922,2]
[359964513,1746452575547,-450.0,0.00019922,2]
[359964514,1746452575570,-663.21,0.00019922,2]
[359964515,1746452575595,-544.23,0.00019922,2]
[359964516,1746452575654,-450.0,0.00019922,2]
[359964517,1746452575676,-450.0,0.00019922,2]
[359964518,1746452575699,-450.0,0.00019922,2]
[359964519,1746452575722,-535.71,0.00019922,2]
[359964520,1746452575744,-763.5,0.00019922,2]
[359964521,1746452575767,-450.0,0.00019922,2]
[359964522,1746452575791,-450.0,0.00019922,2]
[359964523,1746452575814,-450.0,0.00019922,2]
[359964524,1746452575837,-450.0,0.00019922,2]
[359964525,1746452575862,-450.0,0.00019922,2]
[359964526,1746452575884,-450.0,0.00019922,2]
[359964527,1746452575906,-450.0,0.00019922,2]
[359964528,1746452575928,-450.0,0.00019922,2]
[359964529,1746452575950,-492.45,0.00019922,2]
[359964530,1746452575971,-450.0,0.00019922,2]
[359964531,1746452575993,-450.0,0.00019922,2]
[359964532,1746452576016,-1017.0,0.00019923,2]
[359964533,1746452576045,-214.13777009,0.00019923,2]
[359964534,1746452576068,-450.0,0.00019923,2]
[359964535,1746452576090,-274.81802997,0.00019923,2]
[359964536,1746452576112,-453.7754506,0.00019923,2]
[359964537,1746452576134,-500.0,0.00019923,2]
[359964538,1746452576156,-500.0,0.00019923,2]
[359964539,1746452576178,-500.0,0.00019923,2]
[359964540,1746452576199,-591.46121359,0.00019923,2]
[359964541,1746452576221,-453.57451364,0.00019923,2]
[359964542,1746452576242,-450.0,0.00019923,2]
[359964543,1746452576264,-450.0,0.00019923,2]
[359964544,1746452576285,-452.20438635,0.00019923,2]
[359964545,1746452576307,-450.0,0.00019923,2]
[359964546,1746452576328,-450.0,0.00019923,2]
[359964547,1746452576349,-450.0,0.00019923,2]
[359964548,1746452576371,-454.79460591,0.00019923,2]
[359964549,1746452576392,-331.39461255,0.00019923,2]
[359964550,1746452576414,-550.0,0.00019923,2]
[359964551,1746452576435,-206.579673,0.00019923,2]
[359964552,1746452576456,-555.75,0.00019923,2]
[359964553,1746452576478,-212.76,0.00019923,2]
[359964554,1746452576501,-450.0,0.00019923,2]
[359964555,1746452576524,-491.05,0.00019923,2]
[359964556,1746452576547,-450.0,0.00019923,2]
[359964557,1746452576570,-450.0,0.00019923,2]
[359964558,1746452576593,-450.0,0.00019923,2]
[359964559,1746452576634,-450.0,0.00019923,2]
[359964560,1746452576657,-450.0,0.00019923,2]
[359964561,1746452576680,-450.0,0.00019923,2]
[359964562,1746452576702,-450.0,0.00019923,2]
[359964563,1746452576725,-3169.37,0.00019923,2]
[359964564,1746452576748,-3169.37,0.00019923,2]
[359964565,1746452576772,-3169.37,0.00019923,2]
[359964566,1746452576797,-450.0,0.00019923,2]
[359964567,1746452576819,-330.21477132,0.00019923,2]
[359964568,1746452576841,-450.0,0.00019923,2]
[359964569,1746452576863,-450.0,0.00019923,2]
[359964570,1746452576885,-450.0,0.00019923,2]
[359964571,1746452576906,-49575.33,0.00019923,2]
[359964572,1746452576928,-49575.33,0.00019923,2]
[359964573,1746452576951,-49575.33,0.00019923,2]
[359964574,1746452576974,-450.0,0.00019923,2]
[359964575,1746452576997,-450.0,0.00019923,2]
[359964576,1746452577020,-450.0,0.00019923,2]
[359964577,1746452577046,-450.0,0.00019923,2]
[359964578,1746452577067,-450.0,0.00019923,2]
[359964579,1746452577087,-450.0,0.00019923,2]
[359964580,1746452577110,-450.0,0.00019923,2]
[359964581,1746452577133,-450.0,0.00019923,2]
[359964582,1746452577154,-450.0,0.00019923,2]